[Event "44th Chess Olympiad Women 2022"]
[Site "Chennai"]
[Date "2022.08.03"]
[Round "6.27"]
[White "Mosurovic, Milena"]
[Black "Besso, Guadalupe"]
[Result "1/2-1/2"]
[WhiteElo "1452"]
[BlackElo "2059"]
[Annotator "NA RC"]
[PlyCount "201"]
[EventDate "2022.??.??"]
[TimeControl "60"]

1. e4 {[%emt 0:00:03]} c5 {[%emt 0:00:25]} 2. Nc3 {[%emt 0:00:11]} Nc6 {
[%emt 0:00:39]} 3. g3 {[%emt 0:00:23]} g6 {[%emt 0:01:01]} 4. Bg2 {[%emt 0:00:
00]} Bg7 {[%emt 0:00:23]} 5. d3 {[%emt 0:00:07]} d6 {[%emt 0:01:13]} 6. Be3 {
[%emt 0:00:51]} Rb8 {[%emt 0:02:24]} 7. Qd2 {[%emt 0:08:58]} b5 {[%emt 0:06:04]
} 8. Nd1 {[%emt 0:00:46]} e6 {[%emt 0:02:26]} 9. Ne2 {[%emt 0:02:54]} Nge7 {
[%emt 0:10:08]} 10. Bh6 {[%emt 0:00:30]} O-O {[%emt 0:00:30]} 11. Bxg7 {
[%emt 0:00:30]} Kxg7 {[%emt 0:00:30]} 12. Ne3 {[%emt 0:43:14]} e5 {[%emt 0:00:
00]} 13. O-O {[%emt 0:00:00]} Be6 {[%emt 0:05:31]} 14. f4 {[%emt 0:00:00]} f6 {
[%emt 0:05:39]} 15. f5 {[%emt 0:00:00]} Bf7 {[%emt 0:02:45]} 16. fxg6 {[%emt 0:
00:00]} hxg6 {[%emt 0:02:01]} 17. Ng4 {[%emt 0:00:00]} Ng8 {[%emt 0:00:50]} 18.
Rf2 {[%emt 0:00:00]} Be6 {[%emt 0:04:47]} 19. Ne3 {[%emt 0:00:00]} Nce7 {
[%emt 0:02:18]} 20. Raf1 {[%emt 0:00:00]} d5 {[%emt 0:01:46]} 21. exd5 {
[%emt 0:00:00]} Nxd5 {[%emt 0:00:32]} 22. Nxd5 {[%emt 0:00:46]} Bxd5 {[%emt 0:
00:00]} 23. Bxd5 {[%emt 0:00:06]} Qxd5 {[%emt 0:00:18]} 24. Nc3 {[%emt 0:00:44]
} Qd4 {[%emt 0:03:17]} 25. Ne4 {[%emt 0:08:24]} c4 {[%emt 0:02:38]} 26. Qa5 {
[%emt 0:01:26]} Rb7 {[%emt 0:00:19]} 27. Qa6 {[%emt 0:01:07]} Qb6 {[%emt 0:00:
00]} 28. Qxb6 {[%emt 0:00:32]} Rxb6 {[%emt 0:00:17]} 29. Rd2 {[%emt 0:04:39]}
Rd8 {[%emt 0:05:21]} 30. dxc4 {[%emt 0:00:28]} Rxd2 {[%emt 0:00:18]} 31. Nxd2 {
[%emt 0:00:05]} Rd6 {[%emt 0:00:07]} 32. Rf2 {[%emt 0:00:38]} b4 {[%emt 0:00:
00]} 33. Nb3 {[%emt 0:10:05]} Rc6 {[%emt 0:00:59]} 34. c5 {[%emt 0:00:18]} Kf7
{[%emt 0:04:00]} 35. Rd2 {[%emt 0:01:17]} Ke6 {[%emt 0:00:31]} 36. Kf2 {
[%emt 0:00:15]} Ne7 {[%emt 0:01:07]} 37. Kf3 {[%emt 0:03:28]} f5 {[%emt 0:00:
00]} 38. h4 {[%emt 0:02:08]} Ra6 {[%emt 0:00:31]} 39. Rd6+ {[%emt 0:04:30]}
Rxd6 {[%emt 0:00:09]} 40. cxd6 {[%emt 0:00:03]} Kxd6 {[%emt 0:00:09]} 41. Ke3 {
[%emt 0:30:49]} Kd5 {[%emt 0:31:12]} 42. Nd2 {[%emt 0:00:29]} Nc8 {[%emt 0:00:
00]} 43. b3 {[%emt 0:07:01]} Nd6 {[%emt 0:01:50]} 44. Nf3 {[%emt 0:00:00]} Nb5
{[%emt 0:00:00]} 45. Ng5 {[%emt 0:00:00]} Nd4 {[%emt 0:00:00]} 46. Kd2 {
[%emt 0:00:00]} Nb5 {[%emt 0:00:00]} 47. Nf7 {[%emt 0:00:00]} Nc3 {[%emt 0:00:
00]} 48. Nh8 {[%emt 0:00:00]} Ne4+ {[%emt 0:00:00]} 49. Ke3 {[%emt 0:00:00]}
Nxg3 {[%emt 0:00:00]} 50. Nxg6 {[%emt 0:00:00]} Kd6 {[%emt 0:00:00]} 51. Kf3 {
[%emt 0:00:00]} Nh5 {[%emt 0:00:00]} 52. Nf8 {[%emt 0:00:00]} Nf6 {[%emt 0:00:
00]} 53. Ke3 {[%emt 0:00:00]} Kd5 {[%emt 0:00:00]} 54. Ng6 {[%emt 0:00:00]} Ke6
{[%emt 0:00:00]} 55. Kf3 {[%emt 0:00:00]} Nh7 {[%emt 0:06:57]} 56. h5 {[%emt 0:
00:00]} Kf6 {[%emt 0:00:15]} 57. Kg3 {[%emt 0:00:00]} Ng5 {[%emt 0:01:38]} 58.
Nf8 {[%emt 0:00:00]} f4+ {[%emt 0:00:59]} 59. Kf2 {[%emt 0:00:00]} e4 {[%emt 0:
00:00]} 60. Nd7+ {[%emt 0:00:00]} Kf5 {[%emt 0:00:11]} 61. Nc5 {[%emt 0:00:00]}
Kg4 {[%emt 0:01:02]} 62. h6 {[%emt 0:00:00]} e3+ {[%emt 0:00:21]} 63. Ke2 {
[%emt 0:00:00]} Nh7 {[%emt 0:00:32]} 64. Nd3 {[%emt 0:00:00]} a5 {[%emt 0:00:
00]} 65. Ne5+ {[%emt 0:00:00]} Kf5 {[%emt 0:01:11]} 66. Nd3 {[%emt 0:00:00]}
Ke4 {[%emt 0:00:39]} 67. Nc5+ {[%emt 0:01:52]} Kf5 {[%emt 0:00:28]} 68. Nd3 {
[%emt 0:00:18]} Kg4 {[%emt 0:00:09]} 69. Ne5+ {[%emt 0:00:35]} Kg3 {[%emt 0:00:
00]} 70. Nf3 {[%emt 0:00:20]} Kg4 {[%emt 0:00:44]} 71. Ne5+ {[%emt 0:00:20]}
Kf5 {[%emt 0:00:35]} 72. Nd3 {[%emt 0:00:22]} Ng5 {[%emt 0:00:41]} 73. Kf1 {
[%emt 0:07:11]} f3 {[%emt 0:00:14]} 74. Ne1 {[%emt 0:00:32]} Ke4 {[%emt 0:00:
00]} 75. Nd3 {[%emt 0:00:28]} Nh7 {[%emt 0:00:41]} 76. Ke1 {[%emt 0:01:09]} Kd4
{[%emt 0:00:19]} 77. Nf4 {[%emt 0:02:34]} Ke4 {[%emt 0:00:19]} 78. Nd3 {
[%emt 0:00:10]} Kf5 {[%emt 0:00:10]} 79. Kf1 {[%emt 0:00:25]} Kg4 {[%emt 0:00:
00]} 80. Ne5+ {[%emt 0:00:52]} Kg3 {[%emt 0:00:08]} 81. Nd3 {[%emt 0:00:26]}
Ng5 {[%emt 0:00:54]} 82. Nc1 {[%emt 0:01:32]} Kh4 {[%emt 0:01:24]} 83. Nd3 {
[%emt 0:00:32]} Kg3 {[%emt 0:00:35]} 84. Nc1 {[%emt 0:00:10]} Kh2 {[%emt 0:00:
00]} 85. Nd3 {[%emt 0:00:27]} Kg3 {[%emt 0:00:25]} 86. Nc1 {[%emt 0:00:18]} Kh4
{[%emt 0:00:22]} 87. Nd3 {[%emt 0:00:15]} Kh5 {[%emt 0:00:16]} 88. Ne5 {
[%emt 0:00:26]} e2+ {[%emt 0:01:02]} 89. Kf2 {[%emt 0:00:35]} Kxh6 {[%emt 0:00:
00]} 90. Nxf3 {[%emt 0:00:06]} Nxf3 {[%emt 0:00:04]} 91. Kxe2 {[%emt 0:00:06]}
Nd4+ {[%emt 0:00:34]} 92. Kd3 {[%emt 0:00:12]} Nb5 {[%emt 0:00:06]} 93. Kc4 {
[%emt 0:00:10]} Nc3 {[%emt 0:01:24]} 94. a3 {[%emt 0:01:01]} bxa3 {[%emt 0:00:
00]} 95. Kxc3 {[%emt 0:00:05]} Kg5 {[%emt 0:00:16]} 96. b4 {[%emt 0:00:11]}
axb4+ {[%emt 0:00:10]} 97. Kb3 {[%emt 0:00:03]} Kf4 {[%emt 0:00:12]} 98. c3 {
[%emt 0:00:09]} bxc3 {[%emt 0:00:57]} 99. Kxc3 {[%emt 0:00:05]} a2 {[%emt 0:00:
00]} 100. Kb2 {[%emt 0:00:05]} Ke4 {[%emt 0:00:05]} 101. Kxa2 {[%emt 0:00:09]}
1/2-1/2

[Event "44th Chess Olympiad Women 2022"]
[Site "Chennai"]
[Date "2022.08.03"]
[Round "6.27"]
[White "Zuriel, Marisa"]
[Black "Milovic, Aleksandra"]
[Result "1/2-1/2"]
[WhiteElo "2174"]
[BlackElo "2129"]
[Annotator "TA"]
[PlyCount "128"]
[EventDate "2022.??.??"]
[TimeControl "60"]

{[%evp 9,128,62,68,71,60,66,100,109,106,107,141,153,163,160,197,193,235,229,
231,236,227,200,235,222,221,214,210,205,210,215,230,165,199,148,180,162,160,
164,167,149,156,29,31,0,12,0,0,0,0,0,99,0,18,0,0,0,0,0,0,-13,-10,-10,-10,-11,
-9,-10,-5,-14,-15,-18,0,0,-1,-34,-33,-48,-48,-54,-49,-47,-54,-52,-46,-130,-113,
-231,-232,-225,-220,-212,-77,-85,-93,-130,-130,-130,-130,-130,-130,-130,-130,
-130,-130,-130,-8,-8,-8,-8,-8,-8,-8,-8,0,-8,0,-8,-8,-8,-8,-8,-8]} 1. e4 {
[%emt 0:00:04][%cal Ye2e4,Ye4d5]} d5 {[%emt 0:00:04]} 2. exd5 {[%emt 0:00:06]}
Nf6 {[%emt 0:00:04]} 3. d4 {[%emt 0:00:09]} Bg4 {[%emt 0:00:07]} 4. Bb5+ {
[%emt 0:00:22]} c6 {[%emt 0:00:06]} 5. dxc6 {[%emt 0:00:06]} Qa5+ {[%emt 0:00:
46]} 6. Nc3 {[%emt 0:00:07] B01: Scandinavian Defence.} Nxc6 {[%emt 0:00:24]}
7. Nge2 {[%emt 0:00:18]} O-O-O {[%emt 0:02:15]} 8. Bxc6 {[%emt 0:00:11] White
is better.} (8. f3 e5 9. fxg4 exd4 $15) 8... bxc6 {[%emt 0:00:07]} 9. h3 {
[%emt 0:00:17]} (9. f3 $6 e5 10. Bd2 (10. fxg4 exd4 11. Nxd4 Bc5 $15) 10... Bh5
$11) 9... Bh5 {[%emt 0:20:58]} 10. O-O {[%emt 0:00:47]} e5 {[%emt 0:02:25]} 11.
Qd3 {[%emt 0:01:38]} Bxe2 {[%emt 0:19:19]} 12. Nxe2 {[%emt 0:00:50]} e4 {
[%emt 0:01:23]} 13. Qc4 {[%emt 0:04:05][%csl Yc6,Yf7] [#]} Qb5 $146 {[%emt 0:
02:21]} ({Predecessor:} 13... Qd5 14. Qa6+ Kb8 15. c4 Qd7 16. b4 Ne8 17. b5
cxb5 18. c5 Qb7 19. Qa5 Rc8 {1-0 (27) Siger,C (1680)-Verich, O (1179) LSS
email 2014}) 14. Qxb5 {[%emt 0:04:10]} ({Not} 14. Qxf7 Qxe2 15. Bf4 (15. Qxa7
Qb5 $11) 15... Rd7 $11) 14... cxb5 {[%emt 0:00:29]} 15. Bg5 {[%emt 0:02:15]}
Rd5 {[%emt 0:03:45]} 16. Bxf6 {[%emt 0:20:00]} gxf6 {[%emt 0:00:00]} 17. a4 {
[%emt 0:05:54]} b4 {[%emt 0:00:24]} 18. c4 {[%emt 0:00:15]} bxc3 {[%emt 0:02:
58]} 19. bxc3 {[%emt 0:01:25]} Rg8 {[%emt 0:00:06]} 20. Kh1 {[%emt 0:00:26]}
Rdg5 {[%emt 0:01:54]} 21. Rg1 {[%emt 0:00:36]} (21. Ng3 $18) 21... Bd6 {
[%emt 0:01:25]} 22. c4 {[%emt 0:02:26][%cal Yc3c4,Yc4c5]} f5 {[%emt 0:01:42]}
23. Nc3 {[%emt 0:05:17]} Re8 {[%emt 0:06:26]} 24. c5 {[%emt 0:09:46]} Bb8 {
[%emt 0:00:18]} 25. Rge1 {[%emt 0:00:56]} (25. Ra2 $16) 25... Reg8 $1 $11 {
[%emt 0:01:08]} 26. Nd5 {[%emt 0:03:29]} Rd8 {[%emt 0:03:31]} 27. Nb4 {[%emt 0:
05:08]} Rxd4 {[%emt 0:03:23]} 28. Nc6 {[%emt 0:01:33]} Rd2 {[%emt 0:01:35]} 29.
Kg1 {[%emt 0:02:11]} Bf4 {[%emt 0:02:49]} (29... Bg3 $1 $11 30. fxg3 Rxg3) 30.
h4 {[%emt 0:01:45]} ({Worse is} 30. Nxa7+ Kb7 31. Nb5 e3 32. c6+ Kb6 33. fxe3
Be5 $17) (30. Red1 $16) 30... e3 {[%emt 0:11:12]} 31. hxg5 {[%emt 0:00:11]}
exf2+ {[%emt 0:00:04]} 32. Kf1 {[%emt 0:00:05]} fxe1=Q+ {[%emt 0:12:57]} 33.
Rxe1 {[%emt 0:00:00] Endgame KRB-KRN} Kb7 {[%emt 0:00:00]} 34. Ne5 {[%emt 0:06:
22]} Bg3 {[%emt 0:00:00]} (34... Bxg5 $2 35. Nf3 Ra2 36. Nxg5 $18) 35. Rb1+ {
[%emt 0:00:21]} Kc7 {[%emt 0:00:00]} 36. Nxf7 {[%emt 0:00:23]} Rf2+ {[%emt 0:
00:00]} 37. Kg1 {[%emt 0:00:03]} Rc2 {[%emt 0:00:00]} 38. Nd6 {[%emt 0:04:02]}
(38. Kf1 {seems wilder.} Ra2 39. Rb3 f4 40. Nd6) 38... Rxc5 {[%emt 0:00:00]}
39. Ne8+ {[%emt 0:01:08]} Kd8 {[%emt 0:00:00]} 40. Nf6 {[%emt 0:00:16]} Ke7 {
[%emt 0:02:11]} 41. Nxh7 {[%emt 0:30:54]} Kf7 {[%emt 0:03:37]} 42. Rb7+ {
[%emt 0:00:00]} Kg6 $1 {[%emt 0:04:43][%cal Rc5c1]} 43. Nf8+ {[%emt 0:00:00]}
Kh5 {[%emt 0:00:06][%cal Rc5c1]} 44. Kf1 {[%emt 0:00:00]} Re5 $1 {[%emt 0:01:
43][%csl Gg3][%cal Re5e1]} 45. Rb1 {[%emt 0:00:00] Inhibits Re1+.} (45. Rh7+ {
leads to mate.} Kg4) 45... Kxg5 {[%emt 0:00:00]} 46. Rd1 {[%emt 0:00:00]} ({
White should try} 46. Nd7 $15 Re3 47. Nc5) 46... Re4 {[%emt 0:01:50]} 47. a5 {
[%emt 0:00:00]} (47. Nh7+ $17 {might work better.} Kh6 48. Nf6 Rxa4 49. Nd5)
47... Rf4+ $19 {[%emt 0:01:31]} 48. Ke2 {[%emt 0:02:51] Strongly threatening
Ne6+.} Rf2+ {[%emt 0:00:14]} 49. Kd3 {[%emt 0:00:03]} Ra2 {[%emt 0:01:41]} (
49... Rxg2 $19 {Hoping for ...Ra2.} 50. Ra1 f4) 50. Rd2 {[%emt 0:02:28]} Rxa5 {
[%emt 0:00:33]} 51. Ne6+ {[%emt 0:00:05]} Kf6 $1 {[%emt 0:00:58]} 52. Nd4 {
[%emt 0:00:52] [#]} Be5 $1 {[%emt 0:03:03] aiming for ...Rd5.} 53. Nc6 {
[%emt 0:12:41] [#]} Rd5+ {[%emt 0:00:45]} 54. Ke2 {[%emt 0:00:08]} Rxd2+ {
[%emt 0:00:28]} 55. Kxd2 $17 {[%emt 0:00:01] KB-KN} a6 {[%emt 0:00:39]} 56. Kd3
{[%emt 0:00:03]} Bc7 {[%emt 0:00:32]} ({Better is} 56... Bf4 $17 57. Kc3 Kg5)
57. Nb4 $11 {[%emt 0:00:46] The position is equal.} Bd6 {[%emt 0:02:57]} 58.
Nxa6 {[%emt 0:00:04]} Ke5 {[%emt 0:01:32]} 59. Ke3 {[%emt 0:03:20]} Kd5 {
[%emt 0:02:33]} 60. Kf3 {[%emt 0:03:11]} Ke5 {[%emt 0:00:00]} 61. Ke3 {[%emt 0:
02:38]} Kf6 {[%emt 0:02:34]} 62. Kf2 {[%emt 0:00:22]} Kg5 {[%emt 0:00:59]} 63.
Kf3 {[%emt 0:00:01]} Kh4 {[%emt 0:00:58]} 64. Nc5 {[%emt 0:00:41]} Bxc5 {
[%emt 0:00:05] What a bad dream for Black. Weighted Error Value: White=0.15 
(very precise) /Black=0.15 (very precise)} 1/2-1/2

[Event "44th Chess Olympiad Women 2022"]
[Site "Chennai"]
[Date "2022.08.03"]
[Round "6.28"]
[White "Aydin, Gulenay"]
[Black "Junior, Ednasia"]
[Result "1-0"]
[WhiteElo "2100"]
[BlackElo "1849"]
[Annotator "NA RC"]
[PlyCount "83"]
[EventDate "2022.??.??"]
[TimeControl "60"]

1. e4 {[%emt 0:00:04]} c5 {[%emt 0:00:07]} 2. Nf3 {[%emt 0:00:05]} e6 {[%emt 0:
00:00]} 3. g3 {[%emt 0:00:05]} Nc6 {[%emt 0:00:24]} 4. Bg2 {[%emt 0:00:10]} g6
{[%emt 0:00:21]} 5. d4 {[%emt 0:01:02]} cxd4 {[%emt 0:05:40]} 6. Nxd4 {[%emt 0:
00:00]} d6 {[%emt 0:00:32]} 7. O-O {[%emt 0:01:34]} a6 {[%emt 0:01:19]} 8. Nxc6
{[%emt 0:05:46]} bxc6 {[%emt 0:00:19]} 9. e5 {[%emt 0:07:14]} d5 {[%emt 0:00:
00]} 10. Nd2 {[%emt 0:01:56]} Bg7 {[%emt 0:01:18]} 11. Nf3 {[%emt 0:00:15]} Ne7
{[%emt 0:02:59]} 12. Bg5 {[%emt 0:12:04]} h6 {[%emt 0:04:47]} 13. Bf4 {[%emt 0:
00:00]} O-O {[%emt 0:07:03]} 14. Qd2 {[%emt 0:04:41]} Kh7 {[%emt 0:04:24]} 15.
Be3 {[%emt 0:05:40]} Nf5 {[%emt 0:09:33]} 16. Bc5 {[%emt 0:00:39]} Rg8 {
[%emt 0:00:42]} 17. a4 {[%emt 0:04:10]} Bf8 {[%emt 0:05:44]} 18. Qc3 {[%emt 0:
00:00]} Bd7 {[%emt 0:06:30]} 19. Rfb1 {[%emt 0:17:20]} a5 {[%emt 0:14:28]} 20.
Nd4 {[%emt 0:07:16]} Bxc5 {[%emt 0:08:14]} 21. Qxc5 {[%emt 0:00:03]} Nxd4 {
[%emt 0:03:18]} 22. Qxd4 {[%emt 0:00:02]} Qe7 {[%emt 0:01:54]} 23. b3 {[%emt 0:
00:00]} Rgb8 {[%emt 0:02:31]} 24. h4 {[%emt 0:00:53]} h5 {[%emt 0:07:10]} 25.
Re1 {[%emt 0:01:22]} Rb4 {[%emt 0:02:16]} 26. Qd2 {[%emt 0:02:12]} Rab8 {
[%emt 0:02:10]} 27. Bf3 {[%emt 0:03:44]} Bc8 {[%emt 0:01:34]} 28. Qe2 {[%emt 0:
00:00]} R8b6 {[%emt 0:01:11]} 29. Kg2 {[%emt 0:05:27]} c5 {[%emt 0:02:59]} 30.
Rad1 {[%emt 0:04:56]} Ba6 {[%emt 0:00:37]} 31. Qe3 {[%emt 0:01:18]} c4 {
[%emt 0:02:06]} 32. c3 {[%emt 0:00:30]} Rxb3 {[%emt 0:00:22]} 33. Rd4 {[%emt 0:
00:00]} Rb2 {[%emt 0:01:48]} 34. Rf4 {[%emt 0:00:21]} Kg8 {[%emt 0:01:03]} 35.
Rf6 {[%emt 0:00:53]} Kf8 {[%emt 0:00:18]} 36. Bxd5 {[%emt 0:04:33]} Bb7 {
[%emt 0:00:42]} 37. Bxb7 {[%emt 0:01:21]} Qxb7+ {[%emt 0:00:03]} 38. Rf3 {
[%emt 0:00:12]} Kg8 {[%emt 0:00:53]} 39. Rd1 {[%emt 0:01:51]} Rc2 {[%emt 0:00:
00]} 40. Rd8+ {[%emt 0:01:28]} Kh7 {[%emt 0:00:31]} 41. Rf8 {[%emt 0:30:39]}
Kg7 {[%emt 0:30:33]} 42. R8xf7+ {[%emt 0:00:00]} 1-0

[Event "44th Chess Olympiad Women 2022"]
[Site "Chennai"]
[Date "2022.08.03"]
[Round "6.28"]
[White "Caxita, Esperanca"]
[Black "Atalik, Ekaterina"]
[Result "0-1"]
[WhiteElo "1955"]
[BlackElo "2422"]
[Annotator "TA"]
[PlyCount "132"]
[EventDate "2022.??.??"]
[TimeControl "60"]

{[%evp 10,132,37,35,39,14,12,-22,0,0,0,-42,-3,-42,-47,-54,-48,-50,9,-62,-62,
-56,-58,-70,-66,-66,-62,-75,-74,-70,-58,-73,-66,-69,-64,-71,-66,-50,-52,-52,
-44,-57,-61,-56,-56,-76,-52,-61,-37,-32,-31,-106,-64,-54,-51,-252,-229,-216,
-222,-516,-536,-428,-202,-308,-290,-286,-293,-430,-253,-253,-227,-239,-236,
-239,-222,-433,-429,-371,-395,-364,-277,-260,-272,-262,-248,-545,-548,-431,
-263,-263,-263,-263,-263,-256,-256,-686,-685,-842,-1357,-1206,-1287,-1188,
-1132,-915,-859,-1042,-701,-1880,-858,-1390,-1131,-867,-103,-111,-111,-29983,
-29983,-29988,-29989,-29989,-29990,-29990,-29991,-29991,-29991]} 1. e4 {
[%emt 0:00:05]} e5 {[%emt 0:00:12]} 2. Nf3 {[%emt 0:00:17]} Nc6 {[%emt 0:00:13]
} 3. Bc4 {[%emt 0:00:20]} Nf6 {[%emt 0:00:16]} 4. d3 {[%emt 0:00:11]} h6 {
[%emt 0:00:10]} 5. c3 {[%emt 0:02:11]} d6 {[%emt 0:07:22]} 6. Nbd2 {[%emt 0:00:
00][%cal Yb1d2,Yd2f1,Yf1e3,Ye3g4]} g6 {[%emt 0:00:53] C55: Two Knights: 4 d3,
4 d4 exd4 5 e5 and Max Lange Attack.} 7. Nf1 {[%emt 0:02:53]} Bg7 {[%emt 0:00:
57] [#]} 8. Bd2 $146 {[%emt 0:00:55]} ({Predecessor:} 8. Ng3 Qe7 9. O-O O-O 10.
h3 Na5 11. Bb5 a6 12. Ba4 b5 13. Bc2 c5 14. d4 cxd4 15. cxd4 Bd7 {1-0 (15)
Caruana,F (2806)-Megaranto,S (2550) Krasnaya Polyana 2021}) 8... O-O {[%emt 0:
02:11] The position is equal.} 9. Qc1 {[%emt 0:04:27]} Kh7 {[%emt 0:04:31]} 10.
Ne3 {[%emt 0:00:21] Inhibits d5.} Ne7 {[%emt 0:06:28]} 11. h3 {[%emt 0:03:50]}
d5 {[%emt 0:02:50]} 12. exd5 {[%emt 0:03:19]} Nfxd5 {[%emt 0:01:20]} 13. Ng4 {
[%emt 0:02:27][%cal Rd2h6]} Nf5 {[%emt 0:02:27]} (13... Bxg4 14. hxg4 Rh8 15.
Qd1 $14 (15. Bxh6 Kg8 $14)) ({Better is} 13... h5 $1 $15) 14. Bxd5 {[%emt 0:11:
31]} (14. Nfxe5 $2 Bxe5 15. Nxe5 Re8 $19) (14. O-O $11) 14... Qxd5 $15 {
[%emt 0:00:09]} 15. Bxh6 {[%emt 0:03:19]} Qxd3 {[%emt 0:00:00]} (15... Nxh6 16.
Qxh6+ $1 Bxh6 17. Nf6+ Kg7 18. Nxd5 $11) 16. Ng5+ {[%emt 0:05:05]} Kg8 {
[%emt 0:07:41] Black is more active.} 17. Bxg7 {[%emt 0:00:00]} Kxg7 {[%emt 0:
00:58]} 18. Qd2 {[%emt 0:05:01]} Qxd2+ {[%emt 0:02:49]} 19. Kxd2 {[%emt 0:00:
20]} Nd6 {[%emt 0:01:34]} 20. Ne3 {[%emt 0:01:45]} (20. Nxe5 $2 f6 21. Nxg6
Kxg6 $19) 20... f6 {[%emt 0:06:25]} 21. Nf3 {[%emt 0:00:57]} b6 {[%emt 0:06:46]
} 22. Rhd1 {[%emt 0:01:57]} Bb7 {[%emt 0:00:48]} 23. Ke2 {[%emt 0:00:54]} Rad8
{[%emt 0:05:08]} 24. Rac1 {[%emt 0:04:28]} Kf7 {[%emt 0:00:00]} 25. Rc2 {
[%emt 0:08:16]} Ne4 {[%emt 0:03:27]} 26. Rcc1 {[%emt 0:00:40]} Nc5 {[%emt 0:03:
07]} 27. b3 {[%emt 0:03:29]} Bxf3+ {[%emt 0:08:28]} 28. Kxf3 {[%emt 0:05:02]}
Nd3 {[%emt 0:00:40]} 29. Rc2 {[%emt 0:02:31]} f5 {[%emt 0:00:00][%cal Yf6f5,
Yf5f4]} 30. g3 {[%emt 0:04:41]} (30. Rcd2 $15) 30... Ke6 {[%emt 0:01:05]} 31.
Ke2 {[%emt 0:00:52]} e4 {[%emt 0:00:44]} 32. f3 $2 {[%emt 0:04:16]} (32. Ng2 $1
$15) 32... f4 $1 $19 {[%emt 0:04:22]} 33. fxe4 {[%emt 0:10:46]} fxg3 {[%emt 0:
00:27][%csl Gd3,Gg3][%cal Rf8f2]} 34. Rf1 {[%emt 0:04:28]} (34. Nd5 Nf2 35.
Nxc7+ Ke5 36. Rxd8 Rxd8 37. Kf3) 34... Nf4+ {[%emt 0:01:41]} 35. Ke1 {[%emt 0:
01:35]} Nxh3 {[%emt 0:02:57]} (35... Ke5 $142 36. Rg1 Nd3+ 37. Kd1 Rf2 38. Rxf2
gxf2) 36. Rxf8 {[%emt 0:01:00]} (36. Rg2 {only move.}) 36... Rxf8 {[%emt 0:00:
04] Endgame KRN-KRN} 37. Rg2 {[%emt 0:00:33]} Rf3 {[%emt 0:00:58]} 38. Ke2 {
[%emt 0:01:44]} (38. Nf1 $142) 38... Rf2+ {[%emt 0:00:22]} (38... Ng5 $142 39.
Nf1 Ke5 40. Nxg3 Rxc3) 39. Rxf2 {[%emt 0:00:32]} gxf2 {[%emt 0:00:09] KN-KN} (
39... Nxf2 40. Kf3 $17) 40. Ng4 {[%emt 0:00:20]} a5 {[%emt 0:05:10]} 41. a3 {
[%emt 0:05:34]} Kd6 {[%emt 0:05:50]} 42. Kf1 $2 {[%emt 0:01:04]} (42. Nh2 {
was called for.}) 42... Ng5 {[%emt 0:00:00]} 43. e5+ {[%emt 0:02:26]} Ke6 {
[%emt 0:00:51]} 44. Kxf2 {[%emt 0:00:22]} Kf5 {[%emt 0:02:42]} 45. Nh6+ {
[%emt 0:02:34]} Kxe5 {[%emt 0:01:17]} 46. Ke3 {[%emt 0:00:10]} Ne6 {[%emt 0:00:
50]} 47. b4 $2 {[%emt 0:01:41]} (47. Nf7+ Kf6 48. Nh6) 47... a4 {[%emt 0:01:13]
} 48. c4 {[%emt 0:02:02]} g5 {[%emt 0:01:50]} 49. Ng4+ {[%emt 0:02:55]} Kf5 {
[%emt 0:00:18]} 50. Nh6+ {[%emt 0:05:06]} Kg6 {[%emt 0:01:58]} 51. Ng4 {
[%emt 0:00:06]} Kh5 {[%emt 0:01:46]} 52. Nf6+ {[%emt 0:02:34]} (52. Nh2) 52...
Kh4 $1 {[%emt 0:00:49]} 53. Ke4 {[%emt 0:00:38]} g4 {[%emt 0:02:33] Threatens
to win with ...g3.} 54. Nd5 {[%emt 0:00:57]} g3 {[%emt 0:04:49] And now ...g2
would win.} 55. Ne3 {[%emt 0:00:39]} Kh3 {[%emt 0:03:12]} 56. Kd5 {[%emt 0:01:
36]} Nd8 {[%emt 0:04:10]} (56... g2 $2 57. Nxg2 Ng5 58. Ne3 $18) 57. c5 {
[%emt 0:00:43]} bxc5 {[%emt 0:02:01]} (57... g2 58. Nxg2 Kxg2 59. cxb6 cxb6 60.
Kd6 $11) 58. Kxc5 {[%emt 0:00:26]} Ne6+ {[%emt 0:01:33]} (58... g2 59. Nxg2
Kxg2 60. b5 $11) (58... Nb7+ $142 59. Kd4 Nd6) 59. Kd5 {[%emt 0:01:47]} Nf4+ {
[%emt 0:00:52]} (59... g2 $2 60. Nxg2 Ng7 61. Nf4+ Kg4 62. Ne6 $18) 60. Kc6 {
[%emt 0:00:33] [#]} Nd3 $2 {[%emt 0:00:16]} ({And not} 60... g2 61. Nxg2 Kxg2
62. Kxc7 $11) (60... Ne2 $1 $19 {[%cal Re2d4] and Black stays clearly on top.}
61. Kc5 Nc3) 61. b5 $17 {[%emt 0:01:43]} Ne5+ {[%emt 0:02:33]} ({Reject} 61...
g2 $6 {[#]} 62. Nxg2 $1 Kxg2 63. Kxc7 $11) 62. Kd5 $2 {[%emt 0:02:57]} (62.
Kxc7 $17 Nc4 63. b6 (63. Nxc4 $2 g2 $19) 63... Nxe3 64. b7) 62... Ng4 {[%emt 0:
00:59] Black mates.} (62... g2 $2 63. Nxg2 Nd3 64. Ne3 $18) 63. Nxg4 {[%emt 0:
03:00]} Kxg4 {[%emt 0:00:12]} 64. Kc6 {[%emt 0:00:29]} g2 {[%emt 0:00:05]} 65.
Kxc7 {[%emt 0:00:27]} g1=Q {[%emt 0:00:00]} 66. b6 {[%emt 0:00:10]} Qc5+ {
[%emt 0:00:06] Weighted Error Value: White=0.61/Black=0.42} 0-1